fUSD/lending_fUSD_20250522
["ID","MTS","AMOUNT","RATE_DAILY","PERIOD"]
[361985534,1747925432759,-641.09,0.00032876,5]
[361985535,1747925432768,-420.0,0.00032876,5]
[361985536,1747925432778,-420.0,0.00032876,5]
[361985537,1747925432787,-300.0,0.00032876,5]
[361985538,1747925432796,-681.04,0.00032876,5]
[361985539,1747925432805,-554.4,0.00032876,5]
[361985540,1747925432814,-420.0,0.00032876,5]
[361985541,1747925432825,-1101.76,0.00032876,5]
[361985542,1747925432834,-420.0,0.00032876,5]
[361985543,1747925432843,-420.0,0.00032876,5]
[361985544,1747925432853,-420.0,0.00032876,5]
[361985545,1747925432863,-745.84,0.00032876,5]
[361985546,1747925432872,-420.0,0.00032876,5]
[361985547,1747925432881,-420.0,0.00032876,5]
[361985548,1747925432890,-420.0,0.00032876,5]
[361985549,1747925432980,-509.00686049,0.00032876,5]
[361985550,1747925432990,-420.0,0.00032876,5]
[361985551,1747925432999,-1000.0,0.00032876,5]
[361985552,1747925433009,-420.0,0.00032876,5]
[361985553,1747925433019,-475.24,0.00032876,5]
[361985554,1747925433028,-420.0,0.00032876,5]
[361985555,1747925433037,-420.0,0.00032876,5]
[361985556,1747925433046,-756.17,0.00032876,5]
[361985557,1747925433056,-420.0,0.00032876,5]
[361985558,1747925433066,-502.11,0.00032876,5]
[361985559,1747925433078,-600.57,0.00032876,5]
[361985560,1747925433087,-420.0,0.00032876,5]
[361985561,1747925433096,-420.0,0.00032876,5]
[361985562,1747925433106,-404.82997639,0.00032876,5]
[361985563,1747925433116,-420.0,0.00032876,5]
[361985564,1747925433125,-420.0,0.00032876,5]
[361985565,1747925433135,-400.36562187,0.00032876,5]
[361985566,1747925433145,-612.83,0.00032876,5]
[361985567,1747925433155,-571.12,0.00032876,5]
[361985568,1747925433164,-449.42,0.00032876,5]
[361985569,1747925433174,-420.0,0.00032876,5]
[361985570,1747925433184,-880.56,0.00032876,5]
[361985571,1747925433194,-420.0,0.00032876,5]
[361985572,1747925433203,-420.0,0.00032876,5]
[361985573,1747925433212,-420.0,0.00032876,5]
[361985574,1747925433222,-420.0,0.00032876,5]
[361985575,1747925433231,-420.0,0.00032876,5]
[361985576,1747925433240,-420.0,0.00032876,5]
[361985577,1747925433249,-420.0,0.00032876,5]
[361985578,1747925433258,-420.0,0.00032876,5]
[361985579,1747925433267,-476.14,0.00032876,5]
[361985580,1747925433277,-420.0,0.00032876,5]
[361985581,1747925433285,-564.49,0.00032876,5]
[361985582,1747925433295,-420.0,0.00032876,5]
[361985583,1747925433304,-420.0,0.00032876,5]
[361985584,1747925433313,-420.0,0.00032876,5]
[361985585,1747925433325,-726.17,0.00032876,5]
[361985586,1747925433334,-564.3970614,0.00032876,5]
[361985587,1747925433343,-420.0,0.00032876,5]
[361985588,1747925433352,-420.0,0.00032876,5]
[361985589,1747925433362,-550.01,0.00032876,5]
[361985590,1747925433371,-420.0,0.00032876,5]
[361985591,1747925433380,-372.81125492,0.00032876,5]
[361985592,1747925433389,-190.15942835,0.00032876,5]
[361985593,1747925433399,-420.0,0.00032876,5]
[361985594,1747925433408,-467.09,0.00032876,5]
[361985595,1747925433417,-420.0,0.00032876,5]
[361985596,1747925433428,-420.0,0.00032876,5]
[361985597,1747925433437,-420.0,0.00032876,5]
[361985598,1747925433446,-420.0,0.00032876,5]
[361985599,1747925433456,-595.07,0.00032876,5]
[361985600,1747925433466,-420.0,0.00032876,5]
[361985601,1747925433475,-506.17979231,0.00032876,5]
[361985602,1747925433484,-420.0,0.00032876,5]
[361985603,1747925433494,-357.98476,0.00032876,5]
[361985604,1747925433503,-601.05,0.00032876,5]
[361985605,1747925433512,-420.0,0.00032876,5]
[361985606,1747925433521,-420.0,0.00032876,5]
[361985607,1747925433531,-817.0,0.00032876,5]
[361985608,1747925433540,-976.38,0.00032876,5]
[361985609,1747925433549,-420.0,0.00032876,5]
[361985610,1747925433559,-420.0,0.00032876,5]
[361985611,1747925433568,-420.0,0.00032876,5]
[361985612,1747925433581,-152.959474,0.00032876,5]
[361985613,1747925433590,-420.0,0.00032876,5]
[361985614,1747925433600,-630.19,0.00032876,5]
[361985615,1747925433609,-420.0,0.00032876,5]
[361985616,1747925433619,-420.0,0.00032876,5]
[361985617,1747925433629,-420.0,0.00032876,5]
[361985618,1747925433639,-420.0,0.00032876,5]
[361985619,1747925433648,-420.0,0.00032876,5]
[361985620,1747925433658,-831.08,0.00032876,5]
[361985621,1747925433667,-420.0,0.00032876,5]
[361985622,1747925433677,-420.0,0.00032876,5]
[361985623,1747925433686,-624.24049888,0.00032876,30]
[361985624,1747925433696,-752.08,0.00032876,5]
[361985625,1747925433706,-420.0,0.00032876,5]
[361985626,1747925433715,-196.370286,0.00032876,5]
[361985627,1747925433725,-420.0,0.00032876,5]
[361985628,1747925433735,-420.0,0.00032876,5]
[361985629,1747925433745,-480.48,0.00032876,5]
[361985630,1747925433754,-420.0,0.00032876,5]
[361985631,1747925433764,-420.0,0.00032876,5]
[361985632,1747925433774,-420.0,0.00032876,5]
[361985633,1747925433784,-464.49,0.00032876,5]
[361985634,1747925433793,-497.07,0.00032876,5]
[361985635,1747925433803,-720.47,0.00032876,5]
[361985636,1747925433812,-499.58,0.00032876,5]
[361985637,1747925433823,-420.0,0.00032876,5]
[361985638,1747925433833,-963.85,0.00032876,5]
[361985639,1747925433843,-420.0,0.00032876,5]
[361985640,1747925433853,-481.41176239,0.00032876,5]
[361985641,1747925433862,-690.22,0.00032876,5]
[361985642,1747925433872,-420.0,0.00032876,5]
[361985643,1747925433882,-420.0,0.00032876,5]
[361985644,1747925433891,-776.18,0.00032876,5]
[361985645,1747925433901,-420.0,0.00032876,5]
[361985646,1747925433911,-492.99,0.00032876,5]
[361985647,1747925433920,-1092.42,0.00032876,5]
[361985648,1747925433931,-626.55,0.00032876,5]
[361985649,1747925433940,-420.0,0.00032876,5]
[361985650,1747925433950,-1692.25,0.00032876,5]
[361985651,1747925433959,-892.44,0.00032876,5]
[361985652,1747925433971,-420.0,0.00032876,5]
[361985653,1747925433981,-420.0,0.00032876,5]
[361985654,1747925433991,-420.0,0.00032876,5]
[361985655,1747925434003,-724.09,0.00032876,5]
[361985656,1747925434014,-420.0,0.00032876,5]
[361985657,1747925434024,-420.0,0.00032876,5]
[361985658,1747925434034,-547.81,0.00032876,5]
[361985659,1747925434043,-582.11,0.00032876,5]
[361985660,1747925434052,-420.0,0.00032876,5]
[361985661,1747925434062,-648.24,0.00032876,5]
[361985662,1747925434073,-420.0,0.00032876,5]
[361985663,1747925434085,-992.75,0.00032876,5]
[361985664,1747925434096,-529.54,0.00032876,5]
[361985665,1747925434105,-420.0,0.00032876,5]
[361985666,1747925434114,-420.0,0.00032876,5]
[361985667,1747925434123,-577.7,0.00032876,5]
[361985668,1747925434132,-656.34,0.00032876,5]
[361985669,1747925434142,-420.0,0.00032876,5]
[361985670,1747925434152,-480.61491978,0.00032876,5]
[361985671,1747925434162,-420.0,0.00032876,5]
[361985672,1747925434171,-420.0,0.00032876,5]
[361985673,1747925434181,-420.0,0.00032876,5]
[361985674,1747925434190,-949.27,0.00032876,5]
[361985675,1747925434200,-851.77,0.00032876,5]
[361985676,1747925434210,-1089.48,0.00032876,5]
[361985677,1747925434219,-551.06,0.00032876,5]
[361985678,1747925434229,-943.94,0.00032876,5]
[361985679,1747925434238,-1017.5,0.00032876,5]
[361985680,1747925434247,-338.43768311,0.00032876,5]
[361985681,1747925434257,-1413.4,0.00032876,5]
[361985682,1747925434267,-420.0,0.00032876,5]
[361985683,1747925434276,-420.0,0.00032876,5]
[361985684,1747925434286,-420.0,0.00032876,5]
[361985685,1747925434296,-1442.57,0.00032876,5]
[361985686,1747925434306,-1442.57,0.00032876,5]
[361985687,1747925434315,-722.79,0.00032876,5]
[361985688,1747925434326,-1570.57,0.00032876,5]
[361985689,1747925434336,-420.0,0.00032876,5]
[361985690,1747925434346,-420.0,0.00032876,5]
[361985691,1747925434355,-420.0,0.00032876,5]
[361985692,1747925434365,-500.29,0.00032876,5]
[361985693,1747925434374,-1091.08,0.00032876,5]
[361985694,1747925434384,-420.0,0.00032876,5]
[361985695,1747925434394,-420.0,0.00032876,5]
[361985696,1747925434404,-420.0,0.00032876,5]
[361985697,1747925434415,-612.62,0.00032876,5]
[361985698,1747925434424,-852.65,0.00032876,5]
[361985699,1747925434434,-420.0,0.00032876,5]
[361985700,1747925434443,-420.0,0.00032876,5]
[361985701,1747925434453,-420.0,0.00032876,5]
[361985702,1747925434462,-743.67,0.00032876,5]
[361985703,1747925434472,-420.0,0.00032876,5]
[361985704,1747925434482,-452.38,0.00032876,5]
[361985705,1747925434492,-676.62,0.00032876,5]
[361985706,1747925434501,-420.0,0.00032876,5]
[361985707,1747925434511,-765.16,0.00032876,5]
[361985708,1747925434521,-420.0,0.00032876,5]
[361985709,1747925434531,-1055.43,0.00032876,5]
[361985710,1747925434541,-420.0,0.00032876,5]
[361985711,1747925434551,-420.0,0.00032876,5]
[361985712,1747925434560,-420.0,0.00032876,5]
[361985713,1747925434570,-420.0,0.00032876,5]
[361985714,1747925434581,-420.0,0.00032876,5]
[361985715,1747925434590,-586.63,0.00032876,5]
[361985716,1747925434600,-1087.15,0.00032876,5]
[361985717,1747925434610,-420.0,0.00032876,5]
[361985718,1747925434619,-420.0,0.00032876,5]
[361985719,1747925434629,-420.0,0.00032876,5]
[361985720,1747925434639,-558.57,0.00032876,5]
[361985721,1747925434648,-420.0,0.00032876,5]
[361985722,1747925434658,-420.0,0.00032876,5]
[361985723,1747925434667,-544.71,0.00032876,5]
[361985724,1747925434676,-975.98,0.00032876,5]
[361985725,1747925434686,-457.04076731,0.00032876,5]
[361985726,1747925434695,-420.0,0.00032876,5]
[361985727,1747925434705,-420.0,0.00032876,5]
[361985728,1747925434715,-420.0,0.00032876,5]
[361985729,1747925434724,-420.0,0.00032876,5]
[361985730,1747925434734,-932.61,0.00032876,5]
[361985731,1747925434743,-420.0,0.00032876,5]
[361985732,1747925434753,-420.0,0.00032876,5]
[361985733,1747925434762,-775.74,0.00032876,5]
[361985734,1747925434772,-420.0,0.00032876,5]
[361985735,1747925434782,-420.0,0.00032876,5]
[361985736,1747925434791,-364.53630141,0.00032876,5]
[361985737,1747925434801,-420.0,0.00032876,5]
[361985738,1747925434811,-420.0,0.00032876,5]
[361985739,1747925434820,-867.94,0.00032876,5]
[361985740,1747925434831,-420.0,0.00032876,5]
[361985741,1747925434839,-420.0,0.00032876,5]
[361985742,1747925434849,-715.99,0.00032876,5]
[361985743,1747925434859,-440.4,0.00032876,5]
[361985744,1747925434868,-776.86,0.00032876,5]
[361985745,1747925434878,-858.82,0.00032876,5]
[361985746,1747925434888,-420.0,0.00032876,5]
[361985747,1747925434897,-670.95,0.00032876,5]
[361985748,1747925434907,-1042.53,0.00032876,5]
[361985749,1747925434917,-668.89,0.00032876,5]
[361985750,1747925434931,-501.2,0.00032876,5]
[361985751,1747925434941,-900.94,0.00032876,5]
[361985752,1747925434950,-622.33,0.00032876,5]
[361985753,1747925434960,-420.0,0.00032876,5]
[361985754,1747925434971,-420.0,0.00032876,5]
[361985755,1747925434981,-420.0,0.00032876,5]
[361985756,1747925434990,-813.92,0.00032876,5]
[361985757,1747925435002,-620.51,0.00032876,5]
[361985758,1747925435012,-812.82,0.00032876,5]
[361985759,1747925435021,-420.0,0.00032876,5]
[361985760,1747925435031,-614.6,0.00032876,5]
[361985761,1747925435040,-661.18,0.00032876,5]
[361985762,1747925435049,-420.0,0.00032876,5]
[361985763,1747925435059,-498.45,0.00032876,5]
[361985764,1747925435069,-420.0,0.00032876,5]
[361985765,1747925435080,-797.59,0.00032876,5]
[361985766,1747925435090,-944.2,0.00032876,5]
[361985767,1747925435100,-686.92,0.00032876,5]
[361985768,1747925435109,-420.0,0.00032876,5]
[361985769,1747925435119,-278.70806155,0.00032876,5]
[361985770,1747925435128,-429.25,0.00032876,5]
[361985771,1747925435137,-420.0,0.00032876,5]
[361985772,1747925435146,-498.83,0.00032876,5]
[361985773,1747925435155,-743.65,0.00032876,5]
[361985774,1747925435164,-160.0,0.00032876,5]
[361985775,1747925435174,-668.76,0.00032876,5]
[361985776,1747925435183,-722.18,0.00032876,5]
[361985777,1747925435193,-853.98,0.00032876,5]
[361985778,1747925435202,-420.0,0.00032876,5]
[361985779,1747925435211,-158.60166294,0.00032876,5]
[361985780,1747925437585,-614.22833706,0.00032876,5]
[361985782,1747925437595,-881.8,0.00032876,5]
[361985783,1747925437604,-938.35,0.00032876,5]
[361985784,1747925437614,-677.73,0.00032876,5]
[361985785,1747925437623,-420.0,0.00032876,5]
[361985786,1747925437633,-420.0,0.00032876,5]
[361985787,1747925437643,-476.06,0.00032876,5]
[361985788,1747925437652,-485.96,0.00032876,5]
[361985789,1747925437662,-434.04958414,0.00032876,5]
[361985790,1747925437674,-161.23041586,0.00032876,5]
[361985791,1747925437683,-421.4,0.00032876,5]
[361985792,1747925437692,-648.62,0.00032876,5]
[361985793,1747925437702,-603.79,0.00032876,5]
[361985794,1747925437712,-809.53,0.00032876,5]
[361985795,1747925437722,-958.64,0.00032876,5]
[361985796,1747925437732,-420.0,0.00032876,5]
[361985797,1747925437743,-420.0,0.00032876,5]
[361985798,1747925437752,-417.54263414,0.00032876,5]
[361985799,1747925437764,-2.45736586,0.00032876,5]
[361985800,1747925437774,-389.26763414,0.00032876,5]
[361985801,1747925437790,-722.80236586,0.00032876,5]
[361985802,1747925437799,-420.0,0.00032876,5]
[361985803,1747925437809,-420.0,0.00032876,5]
[361985804,1747925437819,-920.13,0.00032876,5]
[361985805,1747925437831,-420.0,0.00032876,5]
[361985806,1747925437840,-984.36,0.00032876,5]
[361985808,1747925437849,-420.0,0.00032876,5]
[361985810,1747925437859,-428.78925808,0.00032876,5]
[361985811,1747925437869,-508.68,0.00032876,5]
[361985813,1747925437879,-448.16,0.00032876,5]
[361985815,1747925437889,-420.0,0.00032876,5]
[361985816,1747925437898,-420.0,0.00032876,5]
[361985817,1747925437907,-761.88,0.00032876,5]
[361985818,1747925437917,-508.72,0.00032876,5]
[361985820,1747925437928,-1307.6,0.00032876,5]
[361985821,1747925437941,-633.85,0.00032876,5]
[361985822,1747925437951,-501.03,0.00032876,5]
[361985823,1747925437960,-769.47,0.00032876,5]
[361985824,1747925437970,-821.9,0.00032876,5]
[361985825,1747925437982,-681.48,0.00032876,5]
[361985826,1747925437991,-887.65,0.00032876,5]
[361985827,1747925438001,-463.46245484,0.00032876,5]
[361985828,1747925438011,-566.04,0.00032876,5]
[361985829,1747925438020,-420.0,0.00032876,5]
[361985830,1747925438030,-688.23,0.00032876,5]
[361985831,1747925438039,-420.0,0.00032876,5]
[361985832,1747925438049,-420.0,0.00032876,5]
[361985833,1747925438059,-420.0,0.00032876,5]
[361985834,1747925438068,-420.0,0.00032876,5]
[361985835,1747925438079,-420.0,0.00032876,5]
[361985836,1747925438088,-420.0,0.00032876,5]
[361985837,1747925438098,-521.53,0.00032876,5]
[361985838,1747925438107,-499.21,0.00032876,5]
[361985839,1747925438116,-1672.5,0.00032876,5]
[361985840,1747925438125,-827.52,0.00032876,5]
[361985841,1747925438135,-420.0,0.00032876,5]
[361985842,1747925438144,-435.1,0.00032876,5]
[361985843,1747925438153,-1703.62,0.00032876,5]
[361985844,1747925438163,-746.43,0.00032876,5]
[361985845,1747925438172,-593.11,0.00032876,5]
[361985846,1747925438182,-1244.2,0.00032876,5]
[361985847,1747925438191,-540.49,0.00032876,5]
[361985848,1747925438202,-432.88,0.00032876,5]
[361985849,1747925438211,-420.0,0.00032876,5]
[361985850,1747925438222,-583.64,0.00032876,5]
[361985851,1747925438232,-489.74,0.00032876,5]
[361985852,1747925438242,-600.56,0.00032876,5]
[361985853,1747925438252,-420.0,0.00032876,5]
[361985854,1747925438262,-561.25,0.00032876,5]
[361985855,1747925438271,-420.0,0.00032876,5]
[361985856,1747925438281,-420.0,0.00032876,5]
[361985857,1747925438290,-420.0,0.00032876,5]
[361985858,1747925438300,-970.47,0.00032876,5]
[361985859,1747925438309,-420.0,0.00032876,5]
[361985860,1747925438318,-420.0,0.00032876,5]
[361985861,1747925438331,-420.0,0.00032876,5]
[361985862,1747925438340,-1983.06,0.00032876,5]
[361985863,1747925438350,-520.44,0.00032876,5]
[361985864,1747925438359,-952.32,0.00032876,5]
[361985865,1747925438369,-420.0,0.00032876,5]
[361985866,1747925438378,-420.0,0.00032876,5]
[361985867,1747925438387,-599.17,0.00032876,5]
[361985868,1747925438397,-613.08,0.00032876,5]
[361985869,1747925438406,-896.27,0.00032876,5]
[361985870,1747925438415,-420.0,0.00032876,5]
[361985871,1747925438424,-694.63,0.00032876,5]
[361985872,1747925438434,-420.82,0.00032876,5]
[361985873,1747925438444,-420.0,0.00032876,5]
[361985874,1747925438453,-584.89,0.00032876,5]
[361985875,1747925438463,-420.0,0.00032876,5]
[361985876,1747925438472,-420.0,0.00032876,10]
[361985877,1747925438482,-420.0,0.00032876,5]
[361985878,1747925438491,-420.0,0.00032876,5]
[361985879,1747925438500,-559.27,0.00032876,5]
[361985880,1747925438510,-1735.1,0.00032876,5]
[361985881,1747925438519,-420.0,0.00032876,5]
[361985882,1747925438528,-420.0,0.00032876,5]
[361985883,1747925438538,-822.89,0.00032876,5]
[361985884,1747925438547,-648.06,0.00032876,5]
[361985885,1747925438556,-420.0,0.00032876,5]
[361985886,1747925438565,-916.85,0.00032876,5]
[361985887,1747925438575,-420.0,0.00032876,5]
[361985888,1747925438584,-661.08,0.00032876,5]
[361985889,1747925438593,-679.6,0.00032876,5]
[361985890,1747925438603,-420.0,0.00032876,5]
[361985891,1747925438612,-427.97,0.00032876,5]
[361985892,1747925438622,-801.88,0.00032876,5]
[361985893,1747925438631,-420.0,0.00032876,5]
[361985894,1747925438640,-752.29,0.00032876,5]
[361985895,1747925438650,-420.0,0.00032876,5]
[361985896,1747925438659,-420.0,0.00032876,5]
[361985897,1747925438668,-420.0,0.00032876,5]
[361985898,1747925438678,-447.06,0.00032876,5]
[361985899,1747925438688,-471.27,0.00032876,5]
[361985900,1747925438697,-754.66,0.00032876,5]
[361985901,1747925438706,-420.0,0.00032876,5]
[361985902,1747925438715,-788.9,0.00032876,5]
[361985903,1747925438724,-420.0,0.00032876,5]
[361985904,1747925438733,-851.13,0.00032876,5]
[361985905,1747925438742,-473.31,0.00032876,5]
[361985906,1747925438752,-420.0,0.00032876,5]
[361985907,1747925438762,-435.49,0.00032876,5]
[361985908,1747925438771,-420.0,0.00032876,5]
[361985909,1747925438781,-420.0,0.00032876,5]
[361985910,1747925438790,-420.0,0.00032876,5]
[361985911,1747925438799,-638.14,0.00032876,5]
[361985912,1747925438809,-420.0,0.00032876,5]
[361985913,1747925438819,-1132.1,0.00032876,5]
[361985914,1747925438830,-420.0,0.00032876,5]
[361985915,1747925438839,-499.06,0.00032876,5]
[361985916,1747925438848,-420.0,0.00032876,5]
[361985917,1747925438857,-420.0,0.00032876,5]
[361985918,1747925438866,-420.0,0.00032876,5]
[361985919,1747925438878,-420.0,0.00032876,5]
[361985920,1747925438887,-894.23,0.00032876,5]
[361985921,1747925438897,-420.0,0.00032876,5]
[361985922,1747925438906,-1030.53,0.00032876,5]
[361985923,1747925438915,-420.0,0.00032876,5]
[361985924,1747925438926,-1097.58,0.00032876,5]
[361985925,1747925438937,-314.36750424,0.00032876,5]
[361985926,1747925438947,-711.35,0.00032876,5]
[361985927,1747925438956,-420.0,0.00032876,5]
[361985928,1747925438966,-420.0,0.00032876,5]
[361985929,1747925438976,-991.33,0.00032876,5]
[361985930,1747925438985,-420.0,0.00032876,5]
[361985931,1747925438994,-420.0,0.00032876,5]
[361985932,1747925439003,-728.61,0.00032876,5]
[361985933,1747925439013,-656.09,0.00032876,5]
[361985934,1747925439022,-577.73,0.00032876,5]
[361985935,1747925439031,-420.0,0.00032876,5]
[361985936,1747925439041,-420.0,0.00032876,5]
[361985937,1747925439050,-510.34216489,0.00032876,5]
[361985938,1747925439060,-420.0,0.00032876,5]
[361985939,1747925439069,-739.52,0.00032876,5]
[361985940,1747925439083,-538.05,0.00032876,5]
[361985941,1747925439092,-420.0,0.00032876,5]
[361985942,1747925439101,-420.0,0.00032876,5]
[361985943,1747925439110,-420.0,0.00032876,5]
[361985944,1747925439119,-420.0,0.00032876,5]
[361985945,1747925439129,-420.0,0.00032876,5]
[361985946,1747925439138,-1041.55,0.00032876,5]
[361985947,1747925439148,-699.89,0.00032876,5]
[361985948,1747925439157,-420.0,0.00032876,5]
[361985949,1747925439445,-420.0,0.00032876,5]
[361985950,1747925439545,-420.0,0.00032876,5]
[361985951,1747925439555,-444.23,0.00032876,5]
[361985952,1747925439564,-681.53,0.00032876,5]
[361985953,1747925439573,-1114.92,0.00032876,5]
[361985954,1747925439588,-420.0,0.00032876,5]
[361985955,1747925439597,-420.0,0.00032876,5]
[361985956,1747925439607,-461.31,0.00032876,5]
[361985957,1747925439616,-420.0,0.00032876,5]
[361985958,1747925439626,-420.0,0.00032876,5]
[361985959,1747925439636,-548.14,0.00032876,5]
[361985960,1747925439646,-1034.07,0.00032876,5]
[361985961,1747925439656,-420.0,0.00032876,5]
[361985962,1747925439666,-420.0,0.00032876,5]
[361985963,1747925439675,-471.2,0.00032876,5]
[361985964,1747925439684,-1098.25,0.00032876,5]
[361985965,1747925439694,-420.0,0.00032876,5]
[361985966,1747925439703,-714.04,0.00032876,5]
[361985967,1747925439713,-827.04,0.00032876,5]
[361985968,1747925439723,-420.0,0.00032876,5]
[361985969,1747925439732,-530.52,0.00032876,5]
[361985970,1747925439742,-623.32,0.00032876,5]
[361985971,1747925439752,-420.0,0.00032876,5]
[361985972,1747925439761,-420.0,0.00032876,5]
[361985973,1747925439771,-420.0,0.00032876,5]
[361985974,1747925439780,-558.38,0.00032876,5]
[361985975,1747925439790,-420.0,0.00032876,5]
[361985976,1747925439800,-420.0,0.00032876,5]
[361985977,1747925439810,-789.64,0.00032876,5]
[361985978,1747925439819,-522.97,0.00032876,5]
[361985979,1747925439832,-420.0,0.00032876,5]
[361985980,1747925439841,-798.6,0.00032876,5]
[361985981,1747925439853,-420.0,0.00032876,5]
[361985982,1747925439863,-3940.93,0.00032876,5]
[361985983,1747925439873,-420.0,0.00032876,5]
[361985984,1747925439883,-420.0,0.00032876,5]
[361985985,1747925439892,-420.0,0.00032876,5]
[361985986,1747925439902,-675.72,0.00032876,5]
[361985987,1747925439912,-206.12088,0.00032876,7]
[361985988,1747925439922,-1389.81,0.00032876,5]
[361985989,1747925439934,-420.0,0.00032876,5]
[361985990,1747925439944,-420.0,0.00032876,5]
[361985991,1747925439954,-2000.0,0.00032876,5]
[361985992,1747925439964,-780.88,0.00032876,5]
[361985993,1747925439974,-654.28,0.00032876,5]
[361985994,1747925439984,-856.0,0.00032876,5]
[361985995,1747925439995,-420.0,0.00032876,5]
[361985996,1747925440005,-872.15,0.00032876,5]
[361985997,1747925440016,-420.0,0.00032876,5]
[361985998,1747925440026,-684.46,0.00032876,5]
[361985999,1747925440036,-420.0,0.00032876,5]
[361986000,1747925440045,-420.0,0.00032876,5]
[361986001,1747925440055,-443.78214618,0.00032876,5]
[361986002,1747925440065,-763.34,0.00032876,5]
[361986003,1747925440074,-420.0,0.00032876,5]
[361986004,1747925440088,-697.78,0.00032876,5]
[361986005,1747925440099,-420.0,0.00032876,5]
[361986006,1747925440110,-420.0,0.00032876,5]
[361986007,1747925440119,-2042.95,0.00032876,5]
[361986008,1747925440128,-420.0,0.00032876,5]
[361986009,1747925440138,-420.0,0.00032876,5]
[361986010,1747925440147,-420.0,0.00032876,5]
[361986011,1747925440157,-420.0,0.00032876,5]
[361986012,1747925440167,-726.29,0.00032876,5]
[361986013,1747925440176,-420.0,0.00032876,2]
[361986014,1747925440186,-1162.92,0.00032876,5]
[361986015,1747925440196,-420.0,0.00032876,5]
[361986016,1747925440206,-420.0,0.00032876,5]
[361986017,1747925440215,-894.96,0.00032876,5]
[361986018,1747925440224,-420.0,0.00032876,5]
[361986019,1747925440234,-420.0,0.00032876,5]
[361986020,1747925440244,-812.0,0.00032876,5]
[361986021,1747925440253,-420.0,0.00032876,5]
[361986022,1747925440263,-420.0,0.00032876,5]
[361986023,1747925440272,-420.0,0.00032876,5]
[361986024,1747925440282,-468.51,0.00032876,5]
[361986025,1747925440292,-602.5,0.00032876,5]
[361986026,1747925440302,-1094.67,0.00032876,5]
[361986027,1747925440311,-693.87,0.00032876,5]
[361986028,1747925440321,-420.0,0.00032876,5]
[361986029,1747925440334,-860.84,0.00032876,5]
[361986030,1747925440343,-420.0,0.00032876,5]
[361986031,1747925440353,-1355.19,0.00032876,5]
[361986032,1747925440362,-835.65,0.00032876,5]
[361986033,1747925440372,-420.0,0.00032876,5]
[361986034,1747925440381,-648.7,0.00032876,5]
[361986035,1747925440391,-420.0,0.00032876,5]
[361986036,1747925440401,-420.0,0.00032876,5]
[361986037,1747925440410,-504.86,0.00032876,5]
[361986038,1747925440419,-685.14,0.00032876,5]
[361986039,1747925440429,-560.21,0.00032876,5]